fUST/lending_fUST_20240901
["ID","MTS","AMOUNT","RATE_DAILY","PERIOD"]
[336810454,1725184240790,-63.43689057,0.00030136,31]
[336810455,1725184240800,-294.91349024,0.00030136,31]
[336810456,1725184240810,-500.0,0.00030136,31]
[336810457,1725184240819,-459.4039747,0.00030136,31]
[336810479,1725185230223,-4294.941599,0.00025,7]
[336810480,1725185230245,-262.241207,0.00025062,2]
[336810481,1725185230266,-251.0,0.00025214,2]
[336810482,1725185230289,-2500.0,0.000254,2]
[336810483,1725185230310,-250.0,0.00026035,2]
[336810484,1725185230332,-250.0,0.00026107,2]
[336810485,1725185230358,-250.0,0.00026178,2]
[336810486,1725185230381,-192.943769,0.0002621,2]
[336810487,1725185230404,-250.0,0.0002625,2]
[336810488,1725185230425,-250.0,0.00026321,2]
[336810489,1725185230447,-300.0,0.00026339,2]
[336810490,1725185230467,-300.0,0.00026339,2]
[336810491,1725185230489,-24900.0,0.0002634,2]
[336810492,1725185230512,-250.0,0.00026392,2]
[336810493,1725185230534,-250.0,0.00026464,2]
[336810494,1725185230555,-250.0,0.00026535,2]
[336810495,1725185230577,-250.0,0.00026607,2]
[336810496,1725185230603,-250.0,0.00026627,2]
[336810497,1725185230627,-250.0,0.00026678,2]
[336810498,1725185230649,-250.0,0.00026749,2]
[336810499,1725185230673,-250.0,0.00026821,2]
[336810500,1725185230699,-250.0,0.00026892,2]
[336810501,1725185230721,-250.0,0.00026964,2]
[336810502,1725185230947,-250.0,0.00027035,2]
[336810503,1725185230971,-250.0,0.00027106,2]
[336810504,1725185230992,-250.0,0.00027178,2]
[336810505,1725185231012,-250.0,0.00027249,2]
[336810506,1725185231033,-250.0,0.00027321,2]
[336810507,1725185231053,-250.0,0.00027392,2]
[336810508,1725185231074,-5029.40942929,0.00028466,2]
[336810509,1725185231094,-163.0,0.00028495,2]
[336810510,1725185231114,-5029.40942929,0.00028608,2]
[336810511,1725185231134,-1000.0,0.00028845,2]
[336810512,1725185231154,-5029.40942929,0.00028917,2]
[336810513,1725185231175,-420.0,0.00028973,2]
[336810514,1725185231201,-5029.40942929,0.00029196,2]
[336810515,1725185231223,-1383.29441631,0.00029215,2]
[336810516,1725185231243,-153.0,0.00029315,2]
[336810517,1725185231266,-153.0,0.00029315,2]
[336810518,1725185231289,-153.0,0.00029315,2]
[336810519,1725185231310,-153.0,0.00029315,2]
[336810520,1725185231332,-153.0,0.00029315,2]
[336810521,1725185231352,-409.6979826,0.00029315,2]
[336810522,1725185231375,-409.6979826,0.00029315,2]
[336810523,1725185231397,-409.6979826,0.00029315,2]
[336810524,1725185231418,-408.5061526,0.00029315,2]
[336810525,1725185231441,-5029.40942929,0.00029349,2]
[336810526,1725185231463,-1383.29441629,0.0002942,2]
[336810527,1725185231486,-1000.0,0.00029579,2]
[336810528,1725185231507,-153.0,0.00029589,2]
[336810529,1725185231528,-153.0,0.00029589,2]
[336810530,1725185231550,-306.0,0.00029589,2]
[336810531,1725185231573,-153.0,0.00029589,2]
[336810532,1725185231595,-153.0,0.00029589,2]
[336810533,1725185231621,-207.943127,0.00029589,2]
[336810534,1725185231642,-153.0,0.00029589,2]
[336810535,1725185231665,-207.943127,0.00029589,2]
[336810536,1725185231687,-207.943127,0.00029589,2]
[336810537,1725185231709,-153.0,0.00029589,2]
[336810538,1725185231729,-207.943127,0.00029589,2]
[336810539,1725185231749,-207.943127,0.00029589,2]
[336810540,1725185231770,-207.943127,0.00029589,2]
[336810541,1725185231791,-207.943127,0.00029589,2]
[336810542,1725185231814,-415.7674593,0.00029589,2]
[336810543,1725185231837,-1383.29441629,0.00029626,2]
[336810544,1725185231859,-5029.40942929,0.00029814,2]
[336810545,1725185231881,-33.73834369,0.00029831,2]
[336810546,1725185233123,-1349.5560726,0.00029831,2]
[336810547,1725185233145,-255.13510837,0.0003,5]
[336810548,1725185233166,-174.0,0.0003,2]
[336810549,1725185233186,-496.30937922,0.0003,2]
[336810550,1725185233206,-2723.66712046,0.00030036,2]
[336810551,1725185233226,-1648.86764062,0.00030036,2]
[336810552,1725185233260,-1383.29441629,0.00030036,2]
[336810553,1725185233282,-919.73937519,0.00030036,2]
[336810554,1725185233305,-7957.92852268,0.00030086,4]
[336810555,1725185233326,-150.0,0.00030096,2]
[336810556,1725185233348,-186.71,0.00030099,3]
[336810557,1725185233369,-5029.40942929,0.00030109,2]
[336810558,1725185233394,-48858.89778328,0.00030126,4]
[336810559,1725185243104,-2000.0,0.00030026,2]
[336810560,1725185243127,-155.59,0.00030116,3]
[336810561,1725185243150,-46636.24448892,0.00030126,4]
[336810562,1725185243174,-7957.92852268,0.00030127,4]
[336810563,1725185243196,-249.09001866,0.00030135,2]
[336810564,1725185243217,-500.0,0.00030135,2]
[336810565,1725185243238,-500.0,0.00030135,2]
[336810566,1725185243260,-500.0,0.00030135,2]
[336810567,1725185243282,-650.87568648,0.00030135,2]
[336810568,1725185243304,-500.0,0.00030135,2]
[336810569,1725185243326,-500.0,0.00030135,2]
[336810570,1725185243349,-10355.25438811,0.00030136,11]
[336810571,1725185243370,-15432.20368838,0.00030136,11]
[336810572,1725185243392,-331.13218118,0.00030136,31]
[336810573,1725185243412,-500.0,0.00030136,31]
[336810574,1725185243434,-500.0,0.00030136,31]
[336810575,1725185243455,-500.0,0.00030136,31]
[336810576,1725185243476,-500.0,0.00030136,31]
[336810577,1725185243496,-500.0,0.00030136,31]
[336810578,1725185243518,-500.0,0.00030136,31]
[336810579,1725185243539,-527.47918058,0.00030136,31]
[336810580,1725185243559,-592.9,0.00030136,31]
[336810581,1725185243580,-500.0,0.00030136,31]
[336810582,1725185243599,-500.0,0.00030136,31]
[336810583,1725185243620,-1568.76,0.00030136,31]
[336810584,1725185243644,-500.0,0.00030136,31]
[336810585,1725185243665,-500.0,0.00030136,31]
[336810586,1725185243686,-500.0,0.00030136,31]
[336810587,1725185243708,-500.0,0.00030136,31]
[336810588,1725185243732,-1136.99,0.00030136,31]
[336810589,1725185243754,-500.0,0.00030136,31]
[336810590,1725185243780,-500.0,0.00030136,31]
[336810591,1725185243801,-500.0,0.00030136,31]
[336810592,1725185243822,-500.0,0.00030136,31]
[336810593,1725185243843,-500.0,0.00030136,31]
[336810594,1725185243863,-500.0,0.00030136,31]
[336810595,1725185243884,-500.0,0.00030136,31]
[336810596,1725185243906,-500.0,0.00030136,31]
[336810597,1725185243927,-500.0,0.00030136,31]
[336810598,1725185243949,-504.42,0.00030136,31]
[336810599,1725185243969,-500.0,0.00030136,31]
[336810600,1725185243990,-500.0,0.00030136,31]
[336810601,1725185244011,-500.0,0.00030136,31]
[336810602,1725185244033,-500.0,0.00030136,31]
[336810603,1725185244054,-500.0,0.00030136,31]
[336810604,1725185244075,-500.0,0.00030136,31]
[336810605,1725185244097,-500.0,0.00030136,31]
[336810606,1725185244118,-859.94,0.00030136,31]
[336810607,1725185244139,-502.73205741,0.00030136,31]
[336810608,1725185244160,-589.68736084,0.00030136,31]
[336810609,1725185244181,-500.0,0.00030136,31]
[336810610,1725185244203,-500.0,0.00030136,31]
[336810611,1725185244224,-500.0,0.00030136,31]
[336810612,1725185244245,-500.0,0.00030136,31]
[336810613,1725185244266,-500.96254311,0.00030136,31]
[336810614,1725185244288,-500.0,0.00030136,31]
[336810615,1725185244308,-399.17452007,0.00030136,31]
[336810616,1725185244328,-500.0,0.00030136,31]
[336810617,1725185244348,-500.0,0.00030136,31]
[336810618,1725185244369,-500.0,0.00030136,31]
[336810619,1725185244390,-500.0,0.00030136,31]
[336810620,1725185244411,-500.0,0.00030136,31]
[336810621,1725185244431,-458.69737463,0.00030136,31]
[336810622,1725185244454,-500.0,0.00030136,31]
[336810623,1725185244474,-534.49675471,0.00030136,31]
[336810624,1725185244494,-500.0,0.00030136,31]
[336810625,1725185244514,-500.0,0.00030136,31]
[336810626,1725185244535,-500.0,0.00030136,31]
[336810627,1725185244554,-472.99812073,0.00030136,31]
[336810628,1725185244574,-937.76,0.00030136,31]
[336810629,1725185244594,-584.5252583,0.00030136,31]
[336810630,1725185244615,-500.0,0.00030136,31]
[336810631,1725185244640,-500.0,0.00030136,31]
[336810632,1725185244661,-47.77048321,0.00030136,31]
[336810633,1725185251112,-777.98,0.00030126,3]
[336810634,1725185251138,-452.22951679,0.00030136,31]
[336810635,1725185251160,-500.0,0.00030136,31]
[336810636,1725185251181,-500.0,0.00030136,10]
[336810637,1725185251203,-827.36,0.00030136,31]
[336810638,1725185251223,-500.0,0.00030136,31]
[336810639,1725185251246,-366.88312887,0.00030136,31]
[336810640,1725185251268,-537.407645,0.00030136,31]
[336810641,1725185251291,-500.0,0.00030136,31]
[336810642,1725185251310,-500.0,0.00030136,31]
[336810643,1725185251335,-500.0,0.00030136,31]
[336810644,1725185251359,-868.46,0.00030136,31]
[336810645,1725185251380,-500.0,0.00030136,31]
[336810646,1725185251404,-716.02,0.00030136,31]
[336810647,1725185251427,-826.09,0.00030136,31]
[336810648,1725185251451,-504.30308324,0.00030136,31]
[336810649,1725185251472,-500.0,0.00030136,31]
[336810650,1725185251492,-500.0,0.00030136,31]
[336810651,1725185251511,-306.90346534,0.00030136,31]
[336810652,1725185251534,-500.0,0.00030136,31]
[336810653,1725185251556,-500.0,0.00030136,31]
[336810654,1725185251578,-1441.63,0.00030136,31]
[336810655,1725185251598,-500.0,0.00030136,31]
[336810656,1725185251619,-500.0,0.00030136,31]
[336810657,1725185251642,-500.0,0.00030136,31]
[336810658,1725185251667,-503.85247891,0.00030136,31]
[336810659,1725185251687,-500.0,0.00030136,31]
[336810660,1725185251709,-500.0,0.00030136,31]
[336810661,1725185251730,-500.0,0.00030136,31]
[336810662,1725185251752,-714.19,0.00030136,31]
[336810663,1725185251773,-500.0,0.00030136,31]
[336810664,1725185251796,-500.0,0.00030136,31]
[336810665,1725185251815,-500.0,0.00030136,31]
[336810666,1725185251836,-500.0,0.00030136,2]
[336810667,1725185251856,-502.85223242,0.00030136,31]
[336810668,1725185251877,-503.1577691,0.00030136,31]
[336810669,1725185251897,-500.75969453,0.00030136,31]
[336810670,1725185251918,-500.0,0.00030136,31]
[336810671,1725185251939,-501.18504295,0.00030136,31]
[336810672,1725185251961,-500.0,0.00030136,31]
[336810673,1725185251981,-500.0,0.00030136,31]
[336810674,1725185252003,-500.0,0.00030136,31]
[336810675,1725185252025,-500.0,0.00030136,31]
[336810676,1725185252048,-500.0,0.00030136,31]
[336810677,1725185252069,-500.0,0.00030136,31]
[336810678,1725185252091,-500.0,0.00030136,31]
[336810679,1725185252112,-500.0,0.00030136,31]
[336810680,1725185252134,-500.0,0.00030136,31]
[336810681,1725185252160,-500.0,0.00030136,31]
[336810682,1725185252182,-500.0,0.00030136,31]
[336810683,1725185252203,-500.0,0.00030136,31]
[336810684,1725185252225,-500.0,0.00030136,31]
[336810685,1725185252245,-500.0,0.00030136,31]
[336810686,1725185252266,-500.0,0.00030136,31]
[336810687,1725185252286,-500.0,0.00030136,31]
[336810688,1725185252306,-500.0,0.00030136,31]
[336810689,1725185252328,-500.0,0.00030136,31]
[336810690,1725185252349,-500.0,0.00030136,31]
[336810691,1725185252371,-500.0,0.00030136,31]
[336810692,1725185252391,-500.0,0.00030136,31]
[336810693,1725185252412,-556.44148614,0.00030136,31]
[336810694,1725185252433,-500.0,0.00030136,31]
[336810695,1725185252457,-500.0,0.00030136,31]
[336810696,1725185252479,-500.0,0.00030136,31]
[336810697,1725185252498,-581.61373928,0.00030136,20]
[336810698,1725185252517,-500.0,0.00030136,31]
[336810699,1725185252537,-662.26,0.00030136,31]
[336810700,1725185252560,-500.0,0.00030136,31]
[336810701,1725185252582,-500.0,0.00030136,31]
[336810702,1725185252605,-500.0,0.00030136,31]
[336810703,1725185252834,-368.99011333,0.00030136,31]
[336810704,1725185252856,-500.0,0.00030136,31]
[336810705,1725185252880,-500.0,0.00030136,31]
[336810706,1725185252901,-502.43,0.00030136,31]
[336810707,1725185252921,-500.0,0.00030136,31]
[336810708,1725185252941,-485.92556822,0.00030136,31]
[336810709,1725185252963,-500.0,0.00030136,31]
[336810710,1725185252984,-2679.3,0.00030136,31]
[336810711,1725185253004,-505.29352395,0.00030136,31]
[336810712,1725185253026,-500.0,0.00030136,31]
[336810713,1725185253046,-500.0,0.00030136,31]
[336810714,1725185253068,-500.0,0.00030136,31]
[336810715,1725185253091,-324.27186465,0.00030136,31]
[336810716,1725185253113,-500.0,0.00030136,31]
[336810717,1725185253135,-500.0,0.00030136,31]
[336810718,1725185253157,-500.0,0.00030136,31]
[336810719,1725185253179,-502.84179359,0.00030136,31]
[336810720,1725185253201,-500.0,0.00030136,31]
[336810721,1725185253226,-765.63,0.00030136,31]
[336810722,1725185253247,-500.0,0.00030136,31]
[336810723,1725185253268,-507.53009171,0.00030136,31]
[336810724,1725185253290,-500.0,0.00030136,31]
[336810725,1725185253310,-500.0,0.00030136,31]
[336810726,1725185253332,-500.0,0.00030136,31]
[336810727,1725185253353,-500.0,0.00030136,31]
[336810728,1725185253376,-948.18,0.00030136,31]
[336810729,1725185253397,-588.18,0.00030136,31]
[336810730,1725185253417,-685.2,0.00030136,31]
[336810731,1725185253439,-500.0,0.00030136,2]
[336810732,1725185253461,-500.0,0.00030136,31]
[336810733,1725185253482,-500.0,0.00030136,31]
[336810734,1725185253503,-500.0,0.00030136,31]
[336810735,1725185253526,-500.0,0.00030136,31]
[336810736,1725185253548,-500.0,0.00030136,31]
[336810737,1725185253569,-500.0,0.00030136,31]
[336810738,1725185253589,-500.0,0.00030136,31]
[336810739,1725185253610,-500.0,0.00030136,31]
[336810740,1725185253634,-500.0,0.00030136,31]
[336810741,1725185253656,-500.0,0.00030136,31]
[336810742,1725185253678,-2140.93,0.00030136,31]
[336810743,1725185253865,-500.0,0.00030136,31]
[336810744,1725185253888,-743.2,0.00030136,31]
[336810745,1725185253910,-500.0,0.00030136,31]
[336810746,1725185253931,-501.34607379,0.00030136,31]
[336810747,1725185253952,-509.68234293,0.00030136,31]
[336810748,1725185253974,-500.0,0.00030136,31]
[336810749,1725185253997,-1099.25,0.00030136,31]
[336810750,1725185254019,-506.74713995,0.00030136,31]
[336810751,1725185254041,-500.0,0.00030136,31]
[336810752,1725185254062,-500.0,0.00030136,31]
[336810753,1725185254082,-500.0,0.00030136,31]
[336810754,1725185254103,-1088.03,0.00030136,31]
[336810755,1725185254125,-2003.82,0.00030136,31]
[336810756,1725185254146,-500.0,0.00030136,31]
[336810757,1725185254169,-500.0,0.00030136,31]
[336810758,1725185254191,-500.0,0.00030136,31]
[336810759,1725185254214,-500.0,0.00030136,31]
[336810760,1725185254236,-500.0,0.00030136,31]
[336810761,1725185254258,-500.0,0.00030136,31]
[336810762,1725185254278,-559.05,0.00030136,31]
[336810763,1725185254301,-500.0,0.00030136,31]
[336810764,1725185254322,-501.55085676,0.00030136,31]
[336810765,1725185254344,-500.0,0.00030136,31]
[336810766,1725185254366,-1344.66,0.00030136,30]
[336810767,1725185254389,-500.0,0.00030136,31]
[336810768,1725185254411,-500.0,0.00030136,31]
[336810769,1725185254432,-463.55958975,0.00030136,31]
[336810770,1725185254455,-500.0,0.00030136,31]
[336810771,1725185254476,-500.0,0.00030136,31]
[336810772,1725185254497,-500.0,0.00030136,31]
[336810773,1725185254519,-500.0,0.00030136,31]
[336810774,1725185254541,-500.89430039,0.00030136,31]
[336810775,1725185254563,-500.0,0.00030136,31]
[336810776,1725185254583,-500.0,0.00030136,31]
[336810777,1725185254604,-500.0,0.00030136,31]
[336810778,1725185254631,-500.473026,0.00030136,31]
[336810779,1725185254653,-2263.0,0.00030136,31]
[336810780,1725185254676,-222.35690471,0.00030136,31]
[336810781,1725185254696,-500.0,0.00030136,31]
[336810782,1725185254718,-865.26,0.00030136,31]
[336810783,1725185254742,-1181.09,0.00030136,31]
[336810784,1725185254764,-500.0,0.00030136,31]
[336810785,1725185254784,-500.0,0.00030136,31]
[336810786,1725185254806,-502.31720496,0.00030136,31]
[336810787,1725185254826,-500.0,0.00030136,31]
[336810788,1725185254847,-500.0,0.00030136,31]
[336810789,1725185254867,-500.0,0.00030136,31]
[336810790,1725185254888,-500.0,0.00030136,31]
[336810791,1725185254908,-157.37234037,0.00030136,31]
[336810792,1725185254929,-825.79,0.00030136,31]
[336810793,1725185254949,-500.0,0.00030136,31]
[336810794,1725185254970,-542.54800923,0.00030136,31]
[336810795,1725185254991,-532.82,0.00030136,31]
[336810796,1725185255013,-500.0,0.00030136,31]
[336810797,1725185255034,-500.0,0.00030136,31]
[336810798,1725185255056,-500.0,0.00030136,2]
[336810799,1725185255076,-866.06,0.00030136,31]
[336810800,1725185255096,-500.0,0.00030136,31]
[336810801,1725185255118,-500.0,0.00030136,31]
[336810802,1725185255139,-500.0,0.00030136,31]
[336810803,1725185255161,-500.0,0.00030136,31]
[336810804,1725185255182,-500.0,0.00030136,31]
[336810805,1725185255204,-500.0,0.00030136,31]
[336810806,1725185255228,-500.0,0.00030136,31]
[336810807,1725185255250,-755.28,0.00030136,31]
[336810808,1725185255271,-1098.18,0.00030136,31]
[336810809,1725185255293,-913.78,0.00030136,31]
[336810810,1725185255314,-543.55,0.00030136,31]
[336810811,1725185255335,-500.0,0.00030136,31]
[336810812,1725185255356,-500.0,0.00030136,31]
[336810813,1725185255377,-500.0,0.00030136,31]
[336810814,1725185255399,-500.0,0.00030136,31]
[336810815,1725185255423,-500.0,0.00030136,31]
[336810816,1725185255445,-500.0,0.00030136,31]
[336810817,1725185255467,-530.1,0.00030136,31]
[336810818,1725185255489,-500.0,0.00030136,31]
[336810819,1725185255510,-500.0,0.00030136,31]
[336810820,1725185255532,-500.0,0.00030136,31]
[336810821,1725185255554,-2421.11,0.00030136,31]
[336810822,1725185255574,-500.0,0.00030136,31]
[336810823,1725185255595,-500.0,0.00030136,31]
[336810824,1725185255615,-500.0,0.00030136,31]
[336810825,1725185255640,-500.0,0.00030136,31]
[336810826,1725185255662,-500.0,0.00030136,31]
[336810827,1725185255683,-500.0,0.00030136,31]
[336810828,1725185255704,-500.0,0.00030136,31]
[336810829,1725185255725,-500.55994172,0.00030136,31]
[336810830,1725185255746,-500.0,0.00030136,20]
[336810831,1725185255766,-500.0,0.00030136,31]
[336810832,1725185255786,-500.0,0.00030136,31]
[336810833,1725185255808,-592.19,0.00030136,31]
[336810834,1725185255829,-500.0,0.00030136,31]
[336810835,1725185255853,-500.0,0.00030136,31]
[336810836,1725185255874,-500.0,0.00030136,31]
[336810837,1725185255895,-500.0,0.00030136,31]
[336810838,1725185255917,-548.03232326,0.00030136,31]
[336810839,1725185255943,-500.0,0.00030136,30]
[336810840,1725185255968,-500.0,0.00030136,31]
[336810841,1725185255988,-500.0,0.00030136,31]
[336810842,1725185256010,-500.0,0.00030136,31]
[336810843,1725185256030,-500.0,0.00030136,31]
[336810844,1725185256052,-500.0,0.00030136,31]
[336810845,1725185256073,-500.0,0.00030136,31]
[336810846,1725185256094,-500.0,0.00030136,31]
[336810847,1725185256115,-500.0,0.00030136,31]
[336810848,1725185256135,-604.91,0.00030136,31]
[336810849,1725185256156,-570.14976887,0.00030136,31]
[336810850,1725185256178,-500.0,0.00030136,31]
[336810851,1725185256199,-868.75,0.00030136,31]
[336810852,1725185256221,-500.0,0.00030136,31]
[336810853,1725185256242,-500.0,0.00030136,31]
[336810854,1725185256262,-658.09,0.00030136,31]
[336810855,1725185256283,-500.0,0.00030136,31]
[336810856,1725185256304,-500.0,0.00030136,31]
[336810857,1725185256324,-500.0,0.00030136,31]
[336810858,1725185256345,-500.0,0.00030136,31]
[336810859,1725185256365,-500.0,0.00030136,31]
[336810860,1725185256387,-500.0,0.00030136,31]
[336810861,1725185256409,-500.44581736,0.00030136,31]
[336810862,1725185256430,-505.74567991,0.00030136,31]
[336810863,1725185256452,-500.0,0.00030136,31]
[336810864,1725185256484,-500.0,0.00030136,31]
[336810865,1725185256505,-500.0,0.00030136,31]
[336810866,1725185256527,-500.0,0.00030136,31]
[336810867,1725185256548,-500.0,0.00030136,31]
[336810868,1725185256569,-500.0,0.00030136,31]
[336810869,1725185256590,-503.86842878,0.00030136,31]
[336810870,1725185256611,-500.0,0.00030136,31]
[336810871,1725185256634,-500.0,0.00030136,31]
[336810872,1725185256656,-500.0,0.00030136,31]
[336810873,1725185256678,-501.55286444,0.00030136,31]
[336810874,1725185256701,-903.01,0.00030136,31]
[336810875,1725185256727,-500.0,0.00030136,31]
[336810876,1725185256751,-500.0,0.00030136,31]
[336810877,1725185256773,-500.0,0.00030136,31]
[336810878,1725185256795,-500.0,0.00030136,31]
[336810879,1725185256816,-500.0,0.00030136,31]
[336810880,1725185256839,-500.0,0.00030136,31]
[336810881,1725185256861,-500.0,0.00030136,31]
[336810882,1725185256882,-500.0,0.00030136,31]
[336810883,1725185256904,-500.0,0.00030136,31]
[336810884,1725185256925,-500.0,0.00030136,31]
[336810885,1725185256947,-500.0,0.00030136,31]
[336810886,1725185256969,-500.0,0.00030136,31]
[336810887,1725185256989,-500.0,0.00030136,31]
[336810888,1725185257010,-500.0,0.00030136,31]
[336810889,1725185257187,-561.53098103,0.00030136,31]
[336810890,1725185257208,-500.0,0.00030136,31]
[336810891,1725185257229,-565.48646795,0.00030136,31]
[336810892,1725185257249,-500.0,0.00030136,31]
[336810893,1725185257271,-500.0,0.00030136,31]
[336810894,1725185257291,-500.48309989,0.00030136,31]
[336810895,1725185257311,-500.0,0.00030136,31]
[336810896,1725185257331,-500.0,0.00030136,31]
[336810897,1725185257351,-500.0,0.00030136,31]
[336810898,1725185257373,-501.93429137,0.00030136,31]
[336810899,1725185257394,-500.0,0.00030136,31]
[336810900,1725185257415,-648.23887466,0.00030136,31]
[336810901,1725185257435,-1088.23,0.00030136,31]
[336810902,1725185257455,-500.0,0.00030136,31]
[336810903,1725185257477,-500.0,0.00030136,31]
[336810904,1725185257498,-500.0,0.00030136,31]
[336810905,1725185257519,-500.0,0.00030136,31]
[336810906,1725185257542,-909.9,0.00030136,31]
[336810907,1725185257563,-472.47114977,0.00030136,31]
[336810908,1725185257583,-500.0,0.00030136,31]
[336810909,1725185257604,-500.0,0.00030136,31]
[336810910,1725185257625,-500.0,0.00030136,31]
[336810911,1725185257649,-500.0,0.00030136,31]
[336810912,1725185257670,-500.0,0.00030136,31]
[336810913,1725185257690,-500.0,0.00030136,31]
[336810914,1725185257714,-512.28540056,0.00030136,31]
[336810915,1725185257735,-500.0,0.00030136,31]
[336810916,1725185257755,-500.0,0.00030136,31]
[336810917,1725185257776,-500.0,0.00030136,31]
[336810918,1725185257797,-500.0,0.00030136,7]
[336810919,1725185257818,-500.0,0.00030136,31]
[336810920,1725185257838,-704.31,0.00030136,31]
[336810921,1725185257862,-500.99527425,0.00030136,31]
[336810922,1725185257885,-500.0,0.00030136,31]
[336810923,1725185257907,-612.6,0.00030136,31]
[336810924,1725185257929,-500.0,0.00030136,31]
[336810925,1725185257949,-500.0,0.00030136,31]
[336810926,1725185257970,-500.0,0.00030136,31]
[336810927,1725185257990,-891.54,0.00030136,31]
[336810928,1725185258011,-500.0,0.00030136,31]
[336810929,1725185258032,-500.0,0.00030136,31]
[336810930,1725185258056,-500.0,0.00030136,31]
[336810931,1725185258078,-500.0,0.00030136,31]
[336810932,1725185258099,-500.0,0.00030136,31]
[336810933,1725185258123,-500.0,0.00030136,31]
[336810934,1725185258148,-500.0,0.00030136,31]
[336810935,1725185258171,-500.0,0.00030136,31]
[336810936,1725185258195,-500.0,0.00030136,31]
[336810937,1725185258217,-500.0,0.00030136,31]
[336810938,1725185258239,-500.0,0.00030136,31]
[336810939,1725185258261,-500.0,0.00030136,31]
[336810940,1725185258285,-500.0,0.00030136,31]
[336810941,1725185258306,-500.0,0.00030136,31]
[336810942,1725185258330,-500.0,0.00030136,31]
[336810943,1725185258355,-500.0,0.00030136,31]
[336810944,1725185258379,-500.0,0.00030136,31]
[336810945,1725185258401,-500.0,0.00030136,31]
[336810946,1725185258425,-992.94,0.00030136,31]
[336810947,1725185258446,-500.0,0.00030136,31]
[336810948,1725185258467,-500.0,0.00030136,31]
[336810949,1725185258491,-500.0,0.00030136,31]
[336810950,1725185258511,-500.0,0.00030136,31]
[336810951,1725185258531,-500.0,0.00030136,31]
[336810952,1725185258551,-505.05089213,0.00030136,31]
[336810953,1725185258573,-500.0,0.00030136,31]
[336810954,1725185258593,-506.19012524,0.00030136,31]
[336810955,1725185258613,-500.0,0.00030136,31]
[336810956,1725185258638,-500.0,0.00030136,31]
[336810957,1725185258661,-500.0,0.00030136,31]
[336810958,1725185258683,-500.0,0.00030136,31]
[336810959,1725185258708,-500.0,0.00030136,31]
[336810960,1725185258732,-1085.34,0.00030136,31]
[336810961,1725185258754,-500.0,0.00030136,31]
[336810962,1725185258779,-1068.29,0.00030136,31]
[336810963,1725185258803,-500.0,0.00030136,31]
[336810964,1725185258824,-500.0,0.00030136,31]
[336810965,1725185258845,-836.51,0.00030136,31]
[336810966,1725185258867,-500.0,0.00030136,31]
[336810967,1725185258891,-500.0,0.00030136,31]
[336810968,1725185258912,-500.0,0.00030136,31]
[336810969,1725185258933,-500.0,0.00030136,31]
[336810970,1725185258953,-504.64872471,0.00030136,31]
[336810971,1725185258974,-500.0,0.00030136,31]
[336810972,1725185258997,-500.0,0.00030136,31]
[336810973,1725185259019,-500.0,0.00030136,31]
[336810974,1725185259041,-500.0,0.00030136,31]